bitfinex/quotes_ETHUSD_20240715
["timestamp","ask_amount","ask_price","bid_price","bid_amount"]
[1721044646993,0.18365028,3347.2,3347.1,6.48648167]
[1721044647197,0.93813083,3347.6,3347.4,2.98739]
[1721044647504,2.4764,3347.7,3347.4,2.98739]
[1721044647505,1.33473434,3347.5,3347.4,2.98739]
[1721044647669,1.33473434,3347.5,3347.4,5.98739]
[1721044648201,1.33473434,3347.5,3347.4,6.63614794]
[1721044648202,0.62552457,3347.5,3347.4,6.63614794]
[1721044648495,0.70939685,3347.5,3347.4,6.63614794]
[1721044648719,0.70939685,3347.5,3347.4,3.0]
[1721044648857,0.70939685,3347.5,3347.3,3.0]
[1721044649160,1.33525484,3347.4,3347.3,5.98747]
[1721044649356,0.70939685,3347.4,3347.3,5.98747]
[1721044649560,0.93813083,3347.5,3347.3,3.0]
[1721044649904,1.64752768,3347.4,3347.1,3.0]
[1721044650087,1.33546368,3347.3,3347.1,3.0]
[1721044650297,0.70939685,3347.2,3347.1,5.98766]
[1721044650464,1.33546368,3347.2,3347.1,5.98766]
[1721044650785,0.62606683,3347.2,3347.1,5.98766]
[1721044651362,1.1234306,3347.3,3347.2,2.98754]
[1721044651571,1.64978468,3347.3,3347.2,5.98754]
[1721044651784,1.46590957,3347.3,3347.2,5.98754]
[1721044651984,0.93955549,3347.3,3347.2,5.98754]
[1721044652182,0.93955549,3347.3,3347.2,3.0]
[1721044652380,0.93955549,3347.3,3347.2,5.98757]
[1721044652381,1.46590957,3347.3,3347.2,5.98757]
[1721044652591,0.93955549,3347.3,3347.2,5.98757]
[1721044652799,0.71022919,3347.3,3347.2,5.98757]
[1721044653109,0.52635408,3347.3,3347.2,5.98757]
[1721044653712,1.46590957,3347.3,3347.2,5.98757]
[1721044653907,0.71022919,3347.3,3347.2,5.98757]
[1721044654211,0.62629702,3347.3,3347.2,5.98757]
[1721044654372,0.52635408,3347.3,3347.2,5.98757]
[1721044654710,0.93941588,3347.4,3347.3,2.98748]
[1721044654914,0.93941588,3347.4,3347.3,5.98748]
[1721044655086,1.46563439,3347.4,3347.3,5.98748]
[1721044655417,1.64946266,3347.4,3347.3,5.98748]
[1721044655917,2.4599,3347.3,3346.8,2.98788]
[1721044656083,1.25251447,3347.0,3346.6,2.9881]
[1721044656275,0.93953105,3346.8,3346.6,2.9881]
[1721044656474,0.93953105,3346.7,3346.5,7.41]
[1721044656675,4.01185792,3346.6,3346.5,7.41]
[1721044656913,7.25052808,3346.6,3346.1,2.98851]
[1721044657119,0.62643988,3346.3,3346.2,2.98846]
[1721044657416,0.62643988,3346.3,3346.0,2.98857]
[1721044657601,0.62639866,3346.3,3346.2,2.98846]
[1721044657783,0.70407703,3346.3,3346.2,2.98846]
[1721044657990,0.70407703,3346.3,3346.2,5.98846]
[1721044658185,0.62639866,3346.5,3346.2,5.98846]
[1721044658402,0.62639866,3346.4,3346.3,3.0]
[1721044658610,1.15006758,3346.4,3346.3,3.08869559]
[1721044658811,1.33039154,3346.4,3346.3,3.08869559]
[1721044659216,1.15006758,3346.4,3346.3,3.08869559]
[1721044660927,0.62639866,3346.4,3346.3,3.08869559]
[1721044661213,1.15010351,3346.4,3346.3,3.08869559]
[1721044661388,0.52370485,3346.4,3346.3,3.08869559]
[1721044662018,1.46330284,3346.4,3346.3,3.08869559]
[1721044662219,1.46330284,3346.4,3346.3,0.08869559]
[1721044662386,1.64370941,3346.4,3346.3,3.08869559]
[1721044663185,1.46330284,3346.4,3346.3,3.08869559]
[1721044664021,0.70411142,3346.4,3346.3,3.08869559]
[1721044664224,0.93959799,3346.5,3346.3,3.08869559]
[1721044664391,0.5236851,3346.4,3346.3,3.08869559]
[1721044665436,0.93939722,3346.4,3346.3,3.08869559]
[1721044667233,2.76736947,3346.5,3346.3,3.08869559]
[1721044667414,4.07060499,3346.4,3346.3,0.08869559]
[1721044667623,1.51489053,3346.4,3346.3,0.08869559]
[1721044667937,0.81075066,3346.4,3346.3,0.08869559]
[1721044668114,0.93941163,3346.4,3346.3,0.08869559]
[1721044668295,1.64355191,3346.4,3346.3,0.08869559]
[1721044668737,1.46312203,3346.4,3346.3,0.08869559]
[1721044669901,1.64355191,3346.4,3346.3,0.08869559]
[1721044670300,1.46312203,3346.4,3346.3,0.08869559]
[1721044670635,0.93941163,3346.4,3346.3,0.08869559]
[1721044670841,1.64345319,3346.4,3346.3,0.08869559]
[1721044671514,1.46304162,3346.4,3346.3,0.08869559]
[1721044671712,2.15828627,3346.4,3346.1,3.0]
[1721044671927,1.25248593,3346.2,3345.9,7.41]
[1721044672101,0.93946721,3346.0,3345.9,7.41]
[1721044672306,1.51492891,3346.0,3345.9,7.41]
[1721044672509,4.0708372,3346.0,3345.9,7.41]
[1721044672829,6.44574155,3346.0,3345.9,7.41]
[1721044673206,5.14231484,3346.0,3345.9,3.0]
[1721044673410,4.01817838,3346.0,3345.8,3.0]
[1721044673704,0.70408874,3345.9,3345.8,3.0]
[1721044673916,1.33019651,3345.9,3345.8,3.0]
[1721044674141,1.64322402,3345.9,3345.8,3.0]
[1721044674331,0.70403438,3345.9,3345.8,3.0]
[1721044675877,0.70403438,3345.9,3345.6,3.0]
[1721044676009,0.62592965,3345.8,3345.6,3.0]
[1721044676209,1.32996403,3345.7,3345.3,7.41]
[1721044676445,0.62592965,3345.5,3345.3,7.41]
[1721044676615,1.32979876,3345.5,3345.3,7.41]
[1721044676820,0.1804242,3345.4,3345.3,7.41]
[1721044677221,0.70385664,3345.4,3345.3,7.41]
[1721044677425,1.14938184,3345.4,3345.3,7.41]
[1721044677626,0.62592965,3345.5,3345.3,7.41]
[1721044677816,1.32958388,3345.5,3345.3,7.41]
[1721044678011,0.62592965,3345.5,3345.4,3.0]
[1721044678240,1.32959867,3345.5,3345.4,3.0]
[1721044678442,0.70366902,3345.5,3345.4,3.0]
[1721044678831,0.18036,3345.5,3345.4,3.0]
[1721044679424,2.2658,3345.6,3345.4,3.0]
[1721044679730,2.2658,3345.6,3345.2,3.0]
[1721044684057,2.2658,3345.6,3345.2,3.0]
[1721044686572,2.51912886,3345.5,3344.8,10.3997]
[1721044686773,0.62513462,3345.3,3344.8,7.41]
[1721044686939,2.276,3345.1,3344.8,7.41]
[1721044688091,0.07474265,3345.0,3344.8,7.41]
[1721044688363,2.276,3344.9,3344.8,7.41]
[1721044688575,2.97815954,3344.9,3344.2,2.99018]
[1721044688811,0.17991832,3344.8,3344.2,2.99018]
[1721044688981,2.3444,3344.7,3344.0,2.99039]
[1721044690172,2.3444,3344.7,3344.1,3.0]
[1721044690325,0.07475406,3344.6,3344.1,3.0]
[1721044690532,2.3444,3344.7,3344.0,3.0]
[1721044691032,2.41915652,3344.7,3344.0,3.0]
[1721044691256,0.30442911,3344.6,3344.0,3.0]
[1721044691627,0.30442911,3344.6,3343.9,2.99051]
[1721044691833,2.3444,3344.7,3344.0,2.99041]
[1721044692024,2.3444,3344.7,3343.9,2.99051]
[1721044692025,2.3444,3344.7,3344.1,2.99033]
[1721044693122,2.3444,3344.7,3344.5,2.98997]
[1721044693576,1.54386892,3345.6,3344.5,2.98997]
[1721044693577,2.3239,3345.2,3344.5,2.98997]
[1721044693760,2.3239,3345.2,3344.6,3.0]
[1721044694072,2.61865513,3345.2,3344.6,3.0]
[1721044694442,2.61865513,3345.2,3344.6,5.98989]
[1721044694783,2.3239,3345.2,3344.6,5.98989]
[1721044696042,2.3239,3345.2,3344.8,2.98964]
[1721044696642,2.3239,3345.2,3344.9,2.98962]
[1721044697530,2.3239,3345.2,3344.9,5.97918]
[1721044697760,2.3239,3345.2,3344.9,2.98956]
[1721044697933,2.3239,3345.2,3345.0,2.98952]
[1721044699177,2.3239,3345.2,3344.7,2.98977]
[1721044699367,2.3239,3345.2,3344.8,3.0]
[1721044699683,2.3239,3345.2,3344.8,5.98969]
[1721044699879,2.3239,3345.2,3344.8,6.887636]
[1721044703381,2.3239,3345.2,3344.9,2.9896]
[1721044703532,2.3239,3345.2,3344.9,3.07948852]
[1721044705133,2.3239,3345.2,3345.1,2.98944]
[1721044705652,2.3239,3345.2,3345.1,3.07918178]
[1721044706055,2.50382128,3345.2,3345.1,0.08974178]
[1721044706436,2.50382128,3345.2,3344.9,2.98955]
[1721044706677,2.50382128,3345.2,3344.8,3.897946]
[1721044706678,2.3239,3345.2,3345.1,0.08974178]
[1721044706885,4.03942141,3345.2,3345.0,0.08981515]
[1721044707082,0.17997942,3345.1,3344.8,5.98967]
[1721044707396,0.70257598,3345.1,3344.8,5.98967]
[1721044707684,2.94840124,3345.2,3344.8,3.0]
[1721044707891,0.70260954,3345.1,3344.7,5.9898]
[1721044708067,2.94840124,3345.2,3344.7,5.9898]
[1721044708241,0.70262739,3345.1,3344.7,5.9898]
[1721044708741,0.62450124,3345.1,3344.7,5.9898]
[1721044709082,1.32719054,3345.1,3344.7,5.9898]
[1721044709375,2.94840124,3345.2,3344.7,5.98972]
[1721044709589,2.94840124,3345.2,3344.8,2.98965]
[1721044709590,0.18003103,3345.1,3344.8,2.98965]
[1721044710839,0.18003103,3345.1,3344.9,2.98961]
[1721044711468,1.32743504,3345.1,3344.9,2.98961]
[1721044712081,0.70304104,3345.0,3344.9,2.98961]
[1721044712398,2.3239,3345.2,3344.9,2.98961]
[1721044712676,1.32867287,3345.1,3344.9,2.98961]
[1721044713451,1.32867287,3345.0,3344.9,2.98961]
[1721044713987,0.70316408,3345.0,3344.9,2.98961]
[1721044714475,1.32867287,3345.0,3344.9,2.98961]
[1721044715076,1.32895652,3345.0,3344.9,2.98961]
[1721044715313,1.32895169,3345.0,3344.9,2.98961]
[1721044716203,0.7034429,3345.0,3344.7,5.98972]
[1721044716414,0.62598362,3344.9,3344.8,2.98971]
[1721044716615,0.62598362,3345.0,3344.9,2.98962]
[1721044717306,1.64206805,3345.1,3344.7,5.98976]
[1721044717623,0.62639252,3344.8,3344.7,5.98976]
[1721044717811,1.64376923,3344.9,3344.7,5.98976]
[1721044717966,0.70418872,3344.8,3344.7,5.98976]
[1721044718172,0.62634728,3345.0,3344.9,2.98962]
[1721044718483,1.3304258,3345.0,3344.9,5.97924]
[1721044718677,0.93961577,3345.2,3345.1,2.98941]
[1721044718920,1.64373524,3345.2,3345.1,2.98941]
[1721044719219,0.70411947,3345.2,3345.1,6.07913401]
[1721044719369,1.15014688,3345.2,3345.1,3.08972401]
[1721044719568,3.03331947,3345.2,3345.1,0.08972401]
[1721044719806,3.03331947,3345.2,3344.9,3.0]
[1721044720010,1.33061553,3345.1,3344.9,3.0]
[1721044720210,0.62649606,3345.0,3344.9,5.9896]
[1721044720372,1.33061553,3345.1,3344.9,5.9896]
[1721044720709,0.70411947,3345.0,3344.9,5.9896]
[1721044720912,1.33061553,3345.0,3344.9,5.9896]
[1721044721211,0.62649606,3345.0,3344.9,5.9896]
[1721044722006,0.62672394,3345.0,3344.9,5.9896]
[1721044722365,1.64460469,3345.1,3344.9,5.9896]
[1721044722713,0.62682287,3345.0,3344.9,5.9896]
[1721044722929,0.62681653,3345.0,3344.9,5.9896]
[1721044723292,1.15085891,3345.0,3344.9,5.9896]
[1721044723490,0.62681653,3345.0,3344.9,5.9896]
[1721044724218,1.15085891,3345.0,3344.9,5.9896]
[1721044724393,1.33133531,3345.0,3344.9,5.9896]
[1721044724897,0.70451878,3345.0,3344.9,5.9896]
[1721044725108,1.33151964,3345.0,3344.9,5.9896]
[1721044725294,0.70464644,3345.0,3344.9,5.9896]
[1721044725525,1.33156729,3345.0,3344.9,5.9896]
[1721044725839,0.62692085,3345.0,3344.9,5.9896]
[1721044726024,0.70464644,3345.0,3344.9,5.9896]
[1721044726206,0.6269207,3345.0,3344.9,8.97916]
[1721044726394,1.15106022,3345.0,3344.9,10.972076]
[1721044726595,1.33156714,3345.0,3344.9,10.972076]
[1721044727438,0.80742762,3345.0,3344.9,10.972076]
[1721044727593,1.33156714,3345.0,3344.9,10.972076]
[1721044728004,1.33156714,3345.0,3344.9,3.0]
[1721044728005,1.64473235,3345.0,3344.9,3.0]
[1721044728217,0.70464644,3345.0,3344.9,1.095]
[1721044728507,0.18055386,3345.0,3344.9,1.095]
[1721044728820,0.94008591,3345.0,3344.9,1.095]
[1721044729040,0.70482953,3345.0,3344.9,7.07424]
[1721044729198,0.94008591,3345.1,3345.0,2.98953]
[1721044729398,1.64496642,3345.1,3345.0,2.98953]
[1721044729625,1.5166393,3345.1,3345.0,5.98953]
[1721044729824,1.6455146,3345.1,3345.0,5.98953]
[1721044730429,0.94063409,3345.1,3345.0,5.98953]
[1721044730629,1.25344789,3345.3,3345.1,2.98944]
[1721044730849,0.18056799,3345.2,3345.1,4.08444]
[1721044731159,0.18056799,3345.2,3345.1,7.08444]
[1721044731440,1.51669559,3345.2,3345.1,7.08444]
[1721044731819,1.51674573,3345.2,3345.1,7.08444]
[1721044732010,0.18057981,3345.2,3345.1,7.08444]
[1721044732210,1.25344789,3345.3,3345.2,2.98935]
[1721044732211,1.77786643,3345.3,3345.2,2.98935]
[1721044732407,4.07392252,3345.3,3345.2,2.98935]
[1721044733619,4.07392252,3345.3,3345.2,3.07835854]
[1721044734914,2.77036185,3345.3,3345.2,3.07835854]
[1721044735111,2.73758668,3345.3,3345.2,0.08900854]
[1721044735410,7.53110852,3345.3,3345.2,0.08900854]
[1721044735829,5.96315957,3345.3,3345.2,0.08900854]
[1721044736046,3.63365957,3345.3,3345.0,3.0]
[1721044736249,1.56833998,3345.1,3344.8,3.0]
[1721044736450,4.07552536,3345.0,3344.8,3.0]
[1721044736609,4.07552536,3344.9,3344.8,3.0]
[1721044736814,2.82061893,3344.9,3344.8,3.0]
[1721044737246,4.07552536,3344.9,3344.8,3.0]
[1721044737438,4.07552536,3344.9,3344.1,12.35]
[1721044737439,2.4376,3344.8,3344.1,12.35]
[1721044737753,1.25532802,3344.5,3344.2,4.08524]
[1721044738048,3.57705434,3344.5,3344.4,1.095]
[1721044738211,4.07721425,3344.5,3344.4,1.095]
[1721044740149,2.82159474,3344.5,3344.4,1.095]
[1721044740351,4.07728187,3344.5,3344.4,1.095]
[1721044740714,2.82159474,3344.5,3344.4,1.095]
[1721044740911,2.8216878,3344.5,3344.4,1.095]
[1721044741211,5.07421983,3344.5,3344.4,1.095]
[1721044741413,1.49479728,3344.5,3344.4,1.095]
[1721044741618,3.5796472,3344.5,3344.4,1.095]
[1721044741845,4.39155177,3344.5,3344.4,1.095]
[1721044742158,4.39155177,3344.5,3344.3,3.0]
[1721044742322,4.39155177,3344.5,3344.1,1.095]
[1721044742323,4.39155177,3344.4,3344.1,1.095]
[1721044742515,4.07720857,3344.3,3344.1,1.095]
[1721044742715,4.07720857,3344.2,3344.1,1.095]
[1721044743247,7.33355213,3344.2,3343.9,4.095]
[1721044743448,0.94130397,3344.0,3343.9,4.095]
[1721044743655,4.07720857,3344.1,3343.8,7.41]
[1721044743656,2.06728836,3344.1,3343.8,7.41]
[1721044743954,4.0770591,3344.0,3343.8,8.505]
[1721044744249,1.51755215,3343.9,3343.8,8.505]
[1721044745043,1.64657985,3343.9,3343.8,11.505]
[1721044745252,1.33269391,3343.9,3343.8,14.4956]
[1721044745462,0.18083528,3343.9,3343.8,17.4862]
[1721044745638,0.62704633,3344.2,3344.1,5.98068]
[1721044745837,0.52427533,3344.2,3344.1,7.07568]
[1721044746055,0.94093227,3344.5,3344.3,2.99016]
[1721044746263,1.64570138,3344.5,3344.4,4.08507]
[1721044746432,0.70476911,3344.5,3344.4,4.08507]
[1721044746632,0.52420237,3344.5,3344.4,4.08507]
[1721044746851,2.3092,3344.7,3344.4,4.08507]
[1721044747044,1.64516625,3344.6,3344.4,2.99007]
[1721044747244,1.64516625,3344.5,3344.4,2.99007]
[1721044747566,1.4645895,3344.5,3344.4,1.095]
[1721044747784,1.51635801,3344.5,3344.4,1.095]
[1721044747932,0.18057675,3344.5,3344.4,1.095]
[1721044748437,1.51635801,3344.5,3344.2,3.0]
[1721044748638,0.94033548,3344.4,3344.3,3.0797973]
[1721044748948,1.64512981,3344.4,3344.3,6.0797973]
[1721044749140,1.46455306,3344.4,3344.3,6.0797973]
[1721044749345,0.94033548,3344.4,3344.3,6.0797973]
[1721044749546,1.64512981,3344.4,3344.3,6.0797973]
[1721044749748,1.46455306,3344.4,3344.3,6.0797973]
[1721044749950,1.33159819,3344.4,3344.3,6.0797973]
[1721044750151,0.62680386,3344.5,3344.4,5.98014]
[1721044750352,0.94033548,3344.6,3344.5,2.98998]
[1721044750551,1.64496725,3344.6,3344.5,2.98998]
[1721044750749,1.64496725,3344.6,3344.5,3.07953051]
[1721044750948,1.46443675,3344.6,3344.5,3.07953051]
[1721044751267,1.46426734,3344.6,3344.5,0.08955051]
[1721044751438,0.70463177,3344.6,3344.5,0.08955051]
[1721044751636,1.25382923,3344.7,3344.5,3.07950051]
[1721044751850,0.94017351,3344.6,3344.5,3.07950051]
[1721044752044,1.46427478,3344.6,3344.5,3.07950051]
[1721044752256,1.51599383,3344.6,3344.5,3.07950051]
[1721044752543,1.64477699,3344.6,3344.5,3.07950051]
[1721044752965,1.46424649,3344.6,3344.5,3.07950051]
[1721044753309,0.94014522,3344.6,3344.5,3.07950051]
[1721044753505,1.46421969,3344.6,3344.5,3.07950051]
[1721044753729,1.64474661,3344.6,3344.5,3.07950051]
[1721044753863,1.6447421,3344.6,3344.5,3.07950051]
[1721044754265,1.46421698,3344.6,3344.5,3.07950051]
[1721044754780,1.6447421,3344.6,3344.5,3.07950051]
[1721044755501,1.33127447,3344.6,3344.5,9.06948051]
[1721044756001,0.70459688,3344.6,3344.5,9.06948051]
[1721044756700,0.69813824,3344.6,3344.5,6.07950051]
[1721044757002,0.69813963,3344.6,3344.5,9.06948051]
[1721044757298,0.94000874,3344.8,3344.7,2.9898]
[1721044757497,0.94000874,3344.8,3344.7,5.9898]
[1721044757678,1.63817336,3344.8,3344.7,6.07710779]
[1721044757860,1.46130393,3344.8,3344.7,6.07710779]
[1721044758285,0.94000874,3344.8,3344.7,6.07710779]
[1721044758803,0.69816462,3344.8,3344.7,6.07710779]
[1721044759007,0.52129519,3344.8,3344.7,6.07710779]
[1721044759198,1.46130393,3344.8,3344.7,6.07710779]
[1721044759910,0.94000874,3344.8,3344.7,6.07710779]
[1721044760489,0.94002489,3344.8,3344.7,6.07710779]
[1721044760668,1.46129827,3344.8,3344.7,6.07710779]
[1721044760864,1.63815375,3344.8,3344.7,6.07710779]
[1721044761070,1.46129827,3344.8,3344.7,6.07710779]
[1721044761506,1.63815375,3344.8,3344.7,6.07710779]
[1721044761991,1.46129827,3344.8,3344.7,6.07710779]
[1721044762192,0.94002489,3344.8,3344.7,6.07710779]
[1721044762388,1.46129827,3344.8,3344.7,6.07710779]
[1721044762894,0.94002489,3344.8,3344.7,6.07710779]
[1721044763293,0.94000272,3344.9,3344.8,2.98971]
[1721044763493,0.94000272,3345.0,3344.8,5.98971]
[1721044763697,1.6380121,3345.0,3344.8,6.07693245]
[1721044763898,0.69805804,3344.9,3344.8,6.07693245]
[1721044764118,1.6380121,3345.0,3344.8,6.07693245]
[1721044764300,0.69805804,3344.9,3344.8,6.07693245]
[1721044764474,0.52123188,3344.9,3344.8,6.07693245]
[1721044764977,0.62663792,3344.9,3344.8,6.07693245]
[1721044765282,1.32469857,3344.9,3344.8,9.06664245]
[1721044765495,0.17682616,3344.9,3344.8,10.23630669]
[1721044765811,0.62664053,3345.2,3345.1,2.98944]
[1721044766102,0.62664053,3345.2,3345.1,6.07643722]
[1721044766308,1.32456659,3345.2,3345.1,6.07643722]
[1721044766477,1.14779632,3345.2,3345.1,6.07643722]
[1721044766676,1.14779632,3345.2,3345.1,9.06587722]
[1721044767273,1.63788012,3345.2,3345.1,9.06587722]
[1721044767512,0.69792606,3345.2,3345.1,9.06587722]
[1721044767674,0.52115579,3345.2,3345.1,9.06587722]
[1721044768514,0.62655938,3345.2,3345.1,9.06587722]
[1721044768825,1.14771517,3345.2,3345.1,9.06587722]
[1721044769506,1.14771517,3345.2,3345.1,6.07643722]
[1721044769825,1.14767757,3345.2,3345.1,6.07643722]
[1721044770523,1.14767757,3345.2,3345.1,7.17143722]
[1721044772923,0.62655938,3345.2,3345.1,7.17143722]
[1721044773101,1.14763773,3345.2,3345.1,7.17143722]
[1721044773617,1.14754133,3345.2,3345.1,7.17143722]
[1721044776119,1.14751493,3345.2,3345.1,7.17143722]
[1721044776315,1.32419307,3345.2,3345.1,7.17143722]
[1721044777236,1.14746176,3345.2,3345.1,7.17143722]
[1721044777596,1.14746176,3345.2,3345.1,6.07643722]
[1721044777795,1.14746176,3345.2,3345.1,7.17143722]
[1721044777996,1.14745476,3345.2,3345.1,7.17143722]
[1721044778230,1.32418459,3345.2,3345.1,7.17143722]
[1721044778527,1.14745476,3345.2,3345.1,7.17143722]
[1721044779100,1.32418459,3345.2,3345.1,7.17143722]
[1721044779407,0.62642562,3345.2,3345.1,7.17143722]
[1721044779633,1.14745476,3345.2,3345.1,7.17143722]
[1721044779930,1.32418487,3345.2,3345.1,7.17143722]
[1721044780432,1.14745491,3345.2,3345.1,7.17143722]
[1721044781221,1.32418487,3345.2,3345.1,7.17143722]
[1721044781422,1.14745491,3345.2,3345.1,7.17143722]
[1721044783099,1.14736529,3345.2,3345.1,7.17143722]
[1721044783537,1.14734297,3345.2,3345.1,7.17143722]
[1721044784201,1.14734297,3345.2,3345.1,10.16087722]
[1721044786242,3.42560026,3345.4,3345.2,2.98926]
[1721044786450,0.69118263,3345.3,3345.2,2.98935]
[1721044786640,0.69118263,3345.3,3345.2,4.08435]
[1721044787451,0.69118263,3345.3,3345.2,7.0737]
[1721044787758,0.62630817,3345.5,3345.4,2.98917]
[1721044787907,1.3173977,3345.5,3345.4,4.08417]
[1721044788539,1.14443321,3345.5,3345.4,4.08417]
[1721044789645,1.31736606,3345.5,3345.4,4.08417]
[1721044789948,1.1444132,3345.5,3345.4,4.08417]
[1721044790108,1.1444132,3345.5,3345.4,7.07334]
[1721044790515,1.31736606,3345.5,3345.4,7.07334]
[1721044790814,1.1444132,3345.5,3345.4,7.07334]
[1721044793024,0.62630817,3345.5,3345.4,7.07334]
[1721044793452,0.62630817,3345.5,3345.4,7.15961716]
[1721044793616,1.14463688,3345.5,3345.4,7.15961716]
[1721044793822,1.31766447,3345.5,3345.4,7.15961716]
[1721044795051,1.14463688,3345.5,3345.4,7.15961716]
[1721044795217,0.6913563,3345.5,3345.4,8.17557888]
[1721044795420,0.6913563,3345.5,3345.4,11.17557888]
[1721044795657,0.62663077,3345.6,3345.5,5.97816]
[1721044795819,0.62663077,3345.6,3345.5,9.0643437]
[1721044796972,2.4805,3346.0,3345.9,2.98873]
[1721044797269,5.28140805,3346.0,3345.9,4.16962035]
[1721044799479,3.28666706,3346.0,3345.9,4.16962035]
[1721044799637,6.8481567,3346.0,3345.9,4.16962035]
[1721044800135,6.8481567,3346.0,3345.9,1.18089035]
[1721044800331,7.72097157,3346.0,3345.9,0.08589035]
[1721044800767,6.70431159,3346.0,3345.9,0.08589035]
[1721044800947,7.78431579,3346.0,3345.9,0.08589035]
[1721044801462,6.70431159,3346.0,3345.9,0.08589035]
[1721044801682,7.78447697,3346.0,3345.9,0.08589035]
[1721044801982,5.78964731,3346.0,3345.9,0.08589035]
[1721044802268,6.70476129,3346.0,3345.9,0.08589035]
[1721044803238,7.78507316,3346.0,3345.9,0.08589035]
[1721044803473,6.70476129,3346.0,3345.9,0.08589035]
[1721044803647,5.28194642,3346.0,3345.9,1.18089035]
[1721044804470,6.84939008,3346.0,3345.9,1.18089035]
[1721044804996,3.28666706,3346.0,3345.9,1.18089035]
[1721044805157,6.84935931,3346.0,3345.9,1.18089035]
[1721044805569,5.2818916,3346.0,3345.9,1.18089035]
[1721044805893,5.99817689,3346.0,3345.9,0.08589035]
[1721044806051,11.5396192,3346.0,3345.9,0.08589035]
[1721044806380,9.58392704,3346.0,3345.9,0.08589035]
[1721044806580,11.46547601,3346.0,3345.9,0.08589035]
[1721044806746,9.51020144,3346.0,3345.9,0.08589035]
[1721044806948,7.62865247,3346.0,3345.9,0.08589035]
[1721044807187,9.51020144,3346.0,3345.9,0.08589035]
[1721044807486,7.62865247,3346.0,3345.9,1.18089035]
[1721044807672,6.36236718,3346.0,3345.9,1.18089035]
[1721044807998,6.36258096,3346.0,3345.9,1.18089035]
[1721044808288,6.3629771,3346.0,3345.9,0.08589035]
[1721044808646,6.36300516,3346.0,3345.9,1.18089035]
[1721044808888,5.2823158,3346.0,3345.9,1.18089035]
[1721044810067,6.36328972,3346.0,3345.9,1.18089035]
[1721044810447,2.8018158,3346.0,3345.9,4.16962035]
[1721044810855,4.37030779,3346.0,3345.9,4.16962035]
[1721044811096,2.8018158,3346.0,3345.9,4.88545538]
[1721044811298,4.05652164,3346.0,3345.9,4.88545538]
[1721044811504,4.05652164,3346.0,3345.9,10.87418538]
[1721044811799,4.05652164,3346.0,3345.9,13.13168538]
[1721044811800,0.17322969,3346.0,3345.9,13.13168538]
[1721044811983,0.6272668,3346.2,3345.9,9.04795538]
[1721044812152,0.6272668,3346.2,3346.1,4.08355]
[1721044812358,0.69200045,3346.2,3346.1,7.0721]
[1721044812717,0.6272668,3346.3,3346.2,5.97692]
[1721044812855,1.14584423,3346.3,3346.2,8.97692]
[1721044813068,0.17303774,3346.3,3346.2,8.97692]
[1721044813529,0.6272668,3346.6,3346.5,2.98819]
[1721044813725,1.14150362,3346.6,3346.5,5.98819]
[1721044814011,1.05904094,3346.6,3346.5,5.98819]
[1721044814605,0.16753732,3346.6,3346.5,8.97638]
[1721044814824,0.94094451,3346.9,3346.7,2.98793]
[1721044814984,0.94094451,3346.8,3346.7,2.98793]
[1721044815186,1.59076946,3346.8,3346.7,2.98793]
[1721044815498,0.64982495,3346.8,3346.7,2.98793]
[1721044817108,0.64982495,3346.8,3346.7,3.70376503]
[1721044817272,3.25144451,3347.0,3346.8,2.98783]
[1721044817473,3.25144451,3347.0,3346.7,3.70376503]
[1721044817474,2.3105,3347.0,3346.9,3.06867431]
[1721044817720,0.50998106,3347.0,3346.9,3.06867431]
[1721044818078,1.38121773,3347.0,3346.9,3.06867431]
[1721044818281,1.45092557,3347.0,3346.9,3.06867431]
[1721044818487,1.38121773,3347.0,3346.9,3.06867431]
[1721044819276,0.50998106,3347.0,3346.9,3.06867431]
[1721044819511,0.44027322,3347.0,3346.9,9.73374824]
[1721044819723,0.06970784,3347.0,3346.9,9.73374824]
[1721044819919,3.42524451,3347.3,3347.1,2.98766]
[1721044820222,1.4506483,3347.2,3347.1,2.98766]
[1721044820519,1.4506483,3347.2,3346.9,5.98777]
[1721044820832,0.50966037,3347.1,3347.0,2.98774]
[1721044821126,0.4399926,3347.1,3346.9,3.0]
[1721044821432,0.50965592,3347.1,3346.9,3.0]
[1721044821769,0.50965592,3347.0,3346.9,3.0]
[1721044821902,0.4399926,3347.0,3346.9,3.0]
[1721044822888,0.43988634,3347.0,3346.9,3.0]
[1721044823127,0.43988634,3347.0,3346.9,3.08080292]
[1721044824028,0.6250129,3347.0,3346.9,3.08080292]
[1721044824227,0.50951735,3347.0,3346.9,3.08080292]
[1721044824439,2.4605,3347.0,3346.9,3.08080292]
[1721044824609,2.97001735,3347.0,3346.9,0.08080292]
[1721044824785,3.59501336,3347.0,3346.9,0.08080292]
[1721044825131,2.5301613,3347.0,3346.9,0.08080797]
[1721044825340,2.96997753,3347.0,3346.9,0.08080797]
[1721044825502,2.96997753,3347.0,3346.9,3.08080797]
[1721044825713,3.59497354,3347.0,3346.9,0.08080797]
[1721044826985,3.59487398,3347.0,3346.9,0.08080797]
[1721044827234,2.53015606,3347.0,3346.9,0.98647277]
[1721044827391,2.4605,3347.0,3346.9,0.98647277]
[1721044827592,0.62492483,3347.2,3346.9,3.97430277]
[1721044827792,1.13424103,3347.2,3346.9,3.97430277]
[1721044828037,0.5093162,3347.1,3346.9,3.97430277]
[1721044828213,0.62492483,3347.2,3346.9,3.97430277]
[1721044828416,1.13421737,3347.2,3346.9,3.97430277]
[1721044828622,1.13421737,3347.1,3346.9,0.08080797]
[1721044828895,0.0696059,3347.0,3346.9,0.08080797]
[1721044829093,0.69453073,3347.1,3346.9,0.08080797]
[1721044829296,2.5584059,3347.0,3346.9,0.08080797]
[1721044829500,3.62307456,3347.0,3346.9,0.08080797]
[1721044829701,4.21157533,3347.0,3346.4,3.0]
[1721044829945,1.13427456,3346.9,3346.5,3.06876702]
[1721044830112,3.11372483,3347.0,3346.6,5.98805]
[1721044830447,0.50945201,3346.9,3346.6,5.98805]
[1721044830599,0.50945201,3346.9,3346.7,0.08050042]
[1721044831111,1.13437684,3346.9,3346.7,0.08050042]
[1721044831329,0.50945201,3346.8,3346.5,3.0]
[1721044831511,0.0696642,3346.7,3346.5,3.0]
[1721044831709,0.62492483,3346.9,3346.5,3.0]
[1721044831914,1.13444422,3346.9,3346.5,3.0]
[1721044832127,0.50951939,3346.8,3346.5,5.98819]
[1721044832441,0.62492483,3346.8,3346.5,5.98819]